bitfinex/quotes_ETHUSD_20250217
["timestamp","ask_amount","ask_price","bid_price","bid_amount"]
[1739803713065,3.53844,2826.1,2826.0,0.11784253]
[1739803713248,3.53879,2825.9,2825.2,3.0]
[1739803713438,3.53888,2825.8,2825.2,3.53953]
[1739803713846,4.666344,2826.1,2825.5,3.53911]
[1739803714067,4.3125,2826.1,2825.4,3.53923]
[1739803714277,4.3125,2826.1,2825.5,3.53918]
[1739803714581,4.29756,2826.5,2826.1,0.00707688]
[1739803714737,3.53809,2826.4,2826.1,0.00707688]
[1739803715126,3.53832,2826.2,2826.1,0.00707688]
[1739803715329,4.245961,2826.2,2826.1,0.00707688]
[1739803715542,3.53832,2826.2,2826.1,0.00707688]
[1739803715742,3.53809,2826.4,2826.1,0.00707688]
[1739803716169,3.53794,2826.5,2826.1,0.00707688]
[1739803716321,0.06485894,2826.7,2826.1,0.00707688]
[1739803716538,3.53817,2826.4,2826.1,0.00707688]
[1739803716939,3.53787,2826.6,2826.1,0.00707688]
[1739803717137,3.53832,2826.2,2826.1,0.00707688]
[1739803717346,4.33282,2826.2,2826.1,0.00707688]
[1739803717554,3.53819,2826.3,2826.1,0.00707688]
[1739803717726,1.15477289,2826.6,2826.1,0.00707688]
[1739803717927,3.53832,2826.2,2826.1,0.00707688]
[1739803718443,3.53819,2826.3,2826.1,0.00707688]
[1739803718646,3.53832,2826.2,2826.1,0.00707688]
[1739803718940,7.430309,2826.3,2826.1,0.00707688]
[1739803719143,3.53832,2826.2,2826.1,0.00707688]
[1739803720998,4.31082,2826.2,2826.1,0.00707688]
[1739803721215,4.31082,2826.2,2826.1,0.12443682]
[1739803721348,3.53819,2826.3,2826.1,0.00707688]
[1739803721548,3.53806,2826.5,2826.1,0.12443682]
[1739803721791,3.53813,2826.4,2826.1,0.00707688]
[1739803721944,3.53813,2826.4,2826.2,0.11729774]
[1739803721945,3.53815,2826.4,2826.2,0.11729774]
[1739803722149,3.53801,2826.5,2826.2,0.11729774]
[1739803722376,1.227424,2827.0,2826.2,0.11729774]
[1739803722576,3.53771,2826.7,2826.2,0.11729774]
[1739803722959,0.353771,2826.7,2826.2,0.11729774]
[1739803723251,3.53819,2826.3,2826.2,0.11729774]
[1739803723799,4.29302,2826.2,2826.1,0.00707688]
[1739803724956,8.94944935,2826.2,2826.1,6.88e-06]
[1739803725266,18.18504935,2826.2,2826.1,6.88e-06]
[1739803725474,3.53965,2825.2,2824.6,0.802]
[1739803725798,3.53985,2825.0,2824.6,0.802]
[1739803726104,0.8203,2825.4,2824.7,0.11420665]
[1739803726105,3.53945,2825.3,2824.7,0.11420665]
[1739803726451,3.53976,2825.1,2824.7,0.11420665]
[1739803726713,3.5398,2825.1,2824.7,0.11420665]
[1739803726864,3.5398,2825.1,2824.5,3.54037]
[1739803727048,0.8203,2826.6,2824.9,0.7749]
[1739803727258,4.23515786,2826.3,2825.0,7.07949]
[1739803727594,3.53891,2825.8,2825.2,3.53949]
[1739803727801,3.53891,2825.8,2825.2,3.53948]
[1739803728005,3.53918,2825.6,2825.3,0.114123]
[1739803728209,0.8203,2826.2,2825.3,0.114123]
[1739803728410,0.8203,2826.2,2825.3,3.53936]
[1739803728571,3.53858,2826.0,2825.4,0.11395909]
[1739803728768,3.53882,2825.8,2825.4,0.11395909]
[1739803729511,3.53882,2825.8,2824.9,0.7749]
[1739803729512,7.0788,2825.4,2824.9,0.7749]
[1739803729810,7.07882,2825.4,2824.9,0.7749]
[1739803730013,0.353882,2825.8,2824.0,0.859]
[1739803730014,0.353882,2825.8,2824.6,3.54028]
[1739803730313,3.53963,2825.2,2824.6,3.54024]
[1739803730467,3.5398,2825.1,2824.5,0.7749]
[1739803730673,3.53963,2825.2,2824.6,3.54024]
[1739803730968,0.7878,2826.0,2825.3,4.30103]
[1739803731201,3.53889,2825.8,2825.2,3.53952]
[1739803731385,0.7878,2826.0,2824.7,0.7617]
[1739803731599,3.53888,2825.8,2825.2,3.53949]
[1739803731804,0.7878,2826.0,2824.9,3.03539399]
[1739803732003,0.8001,2826.4,2825.1,0.7659]
[1739803732176,0.8001,2826.4,2826.0,3.53857]
[1739803732577,4.33818,2826.4,2825.8,3.53881]
[1739803732783,0.8001,2826.4,2825.5,3.0]
[1739803733029,3.53876,2825.9,2825.2,3.5395]
[1739803733334,7.953,2826.1,2825.8,3.53877]
[1739803733635,7.953,2826.1,2826.0,3.53857]
[1739803733837,7.953,2826.1,2826.0,4.30447]
[1739803734008,3.53764,2826.8,2826.1,3.0]
[1739803734335,0.707504,2826.8,2825.7,3.53886]
[1739803734534,3.53821,2826.3,2825.6,4.30487]
[1739803734831,3.53857,2826.0,2825.6,0.7659]
[1739803735132,3.53838,2826.2,2825.6,4.30487]
[1739803735334,0.8001,2826.4,2825.6,4.30487]
[1739803735493,3.5384,2826.2,2825.6,4.30487]
[1739803735696,0.787658,2826.2,2825.2,3.5395]
[1739803735905,3.53879,2825.9,2825.2,3.53949]
[1739803736258,3.53831,2826.3,2825.0,3.756]
[1739803736401,3.53846,2826.1,2825.5,3.53908]
[1739803736825,3.53856,2826.1,2825.5,3.53908]
[1739803737010,4.33819,2826.4,2825.8,3.53875]
[1739803737219,1.233919,2826.4,2825.8,3.53875]
[1739803737426,3.53827,2826.3,2825.6,3.53899]
[1739803737593,3.53829,2826.3,2825.7,3.6522892]
[1739803737795,0.8001,2826.4,2825.7,0.1134392]
[1739803738141,0.7631,2826.8,2825.8,3.0]
[1739803738303,3.53788,2826.6,2825.9,3.53867]
[1739803738504,3.53788,2826.6,2826.0,3.5385]
[1739803738744,3.53813,2826.4,2826.0,0.11311249]
[1739803739104,3.53784,2826.6,2825.9,3.53862]
[1739803739303,3.53784,2826.6,2826.1,3.65146028]
[1739803739507,3.53794,2826.5,2826.0,0.11311249]
[1739803739711,3.53771,2826.7,2826.1,3.53837]
[1739803740017,3.53814,2826.4,2826.1,0.11305028]
[1739803740333,3.53814,2826.4,2825.3,4.32954]
[1739803740334,0.7631,2826.8,2825.3,0.7902]
[1739803740645,3.53776,2826.7,2826.2,0.11298808]
[1739803740850,0.7631,2826.8,2826.0,0.773]
[1739803741020,3.53822,2826.3,2825.8,3.0]
[1739803741219,3.538,2826.5,2825.6,0.773]
[1739803741527,3.53796,2826.5,2825.8,3.5388]
[1739803741731,3.53796,2826.5,2825.8,3.53874]
[1739803742045,3.53776,2826.7,2825.7,0.03538351]
[1739803742256,3.53801,2826.5,2825.9,3.53866]
[1739803742402,3.53806,2826.4,2825.7,7.07769]
[1739803742603,0.353801,2826.5,2825.7,3.53891]
[1739803742802,0.353801,2826.5,2825.6,0.773]
[1739803742803,3.53854,2826.1,2825.6,0.773]
[1739803743009,0.353801,2826.5,2825.6,0.773]
[1739803743010,3.53865,2826.0,2825.6,0.773]
[1739803743215,3.53878,2825.9,2825.7,0.11320738]
[1739803743654,3.53878,2825.9,2825.3,3.53934]
[1739803743942,3.53864,2826.0,2825.4,3.53926]
[1739803744152,0.707715,2826.0,2825.4,0.11339406]
[1739803744335,3.53931,2825.5,2825.4,0.11339406]
[1739803744546,3.53954,2825.3,2824.8,0.7762]
[1739803744841,3.53962,2825.2,2824.1,0.7762]
[1739803745040,3.54074,2824.3,2823.8,4.62101054]
[1739803745344,0.7592,2824.7,2823.3,4.35391]
[1739803745345,3.54095,2824.1,2823.3,4.35391]
[1739803745513,3.54095,2824.1,2823.4,3.54182]
[1739803745715,3.54095,2824.1,2823.3,0.812]
[1739803745915,3.54103,2824.1,2823.4,3.54171]
[1739803746161,3.54091,2824.2,2823.3,0.812]
[1739803746468,0.7592,2824.7,2823.5,3.5417]
[1739803746814,0.84150206,2825.8,2824.1,6.54095]
[1739803746815,8.747,2825.1,2824.1,6.54095]
[1739803746971,8.747,2825.1,2824.0,0.7776]
[1739803746972,0.795,2825.7,2824.8,0.8282]
[1739803747263,0.795,2825.7,2824.9,3.53994]
[1739803747467,4.65642935,2825.3,2823.6,1.0028302]
[1739803747622,3.54004,2824.9,2824.1,3.54084]
[1739803747823,4.65642935,2824.9,2823.7,3.54132]
[1739803748075,3.54057,2824.4,2823.7,7.08267]
[1739803748365,3.54057,2824.4,2823.7,3.54132]
[1739803748568,3.54057,2824.4,2823.5,4.34567]
[1739803748723,0.8232,2824.3,2823.3,3.54191]
[1739803748923,3.54121,2823.9,2823.3,3.54191]
[1739803749273,0.8232,2824.3,2823.8,7.08244]
[1739803749561,0.354057,2824.4,2823.8,3.5412]
[1739803749762,0.354057,2824.4,2823.9,3.54107]
[1739803749964,5.43542935,2824.8,2823.5,3.54162]
[1739803750136,3.54072,2824.3,2823.1,0.7524]
[1739803750347,3.54132,2823.8,2823.2,3.54199]
[1739803750536,0.8297,2824.1,2822.7,3.54269]
[1739803750537,0.8297,2824.1,2822.7,4.34999]
[1739803750723,0.8297,2824.1,2822.8,3.0]
[1739803750966,0.437049,2824.1,2824.0,3.54107]
[1739803751128,0.8297,2824.5,2824.0,3.54107]
[1739803751129,0.8297,2824.5,2824.0,3.54106]
[1739803751465,3.5414,2823.8,2823.1,0.8073]
[1739803751666,0.8297,2823.7,2823.1,3.5422]
[1739803751865,0.8297,2823.7,2822.5,0.8073]
[1739803751866,4.3712,2823.7,2822.5,0.8073]
[1739803752040,0.43712,2823.6,2822.8,3.54254]
[1739803752243,3.97879,2823.6,2823.0,3.5423]
[1739803752434,3.97879,2823.6,2822.2,0.69354649]
[1739803752435,0.43712,2823.6,2822.6,3.54278]
[1739803752633,3.54188,2823.4,2822.6,3.54278]
[1739803752968,4.65642935,2823.4,2822.2,3.54323]
[1739803753280,3.54253,2822.9,2822.3,3.5432]
[1739803753446,3.54272,2822.7,2822.0,3.5435]
[1739803753652,3.5425,2822.9,2822.2,3.54332]
[1739803753844,3.54273,2822.7,2822.0,3.54354]
[1739803754182,0.8256,2822.4,2822.0,3.54354]
[1739803754478,0.8256,2822.4,2821.9,3.5437]
[1739803754643,0.8256,2822.4,2821.8,3.54375]
[1739803754644,4.805627,2822.4,2821.8,3.54375]
[1739803754976,1.262457,2822.4,2822.2,3.54328]
[1739803755178,0.7573,2822.8,2821.5,0.8317]
[1739803755477,3.54277,2822.7,2822.0,3.5435]
[1739803755623,0.7573,2822.8,2822.3,3.54313]
[1739803755829,0.7573,2822.8,2822.4,3.54306]
[1739803756241,0.50369691,2823.3,2822.0,3.0]
[1739803756242,0.7573,2823.2,2822.0,3.0]
[1739803756563,0.7573,2823.2,2822.5,3.54293]
[1739803756880,4.29944,2823.2,2822.4,3.54299]
[1739803757081,0.03805397,2823.3,2822.6,3.54274]
[1739803757251,3.58005397,2823.3,2822.7,3.54262]
[1739803757788,7.12212397,2823.3,2822.7,3.54262]
[1739803757929,0.7122124,2823.2,2822.1,3.54335]
[1739803758165,3.54254,2822.9,2822.8,0.116985]
[1739803758500,4.36084,2822.9,2822.1,3.54335]
[1739803758800,3.54263,2822.8,2822.1,3.54335]
[1739803758977,3.54263,2822.8,2822.2,3.66066916]
[1739803759174,3.54263,2822.8,2822.2,0.11735916]
[1739803759376,3.54291,2822.6,2822.2,0.11735916]
[1739803759595,3.54291,2822.6,2821.9,3.54365]
[1739803759791,3.54291,2822.6,2822.3,0.11729679]
[1739803759990,3.54308,2822.4,2822.3,0.11729679]
[1739803760188,3.54308,2822.4,2821.6,3.54407]
[1739803760189,3.54335,2822.2,2821.6,3.54407]
[1739803760389,3.54335,2822.2,2821.6,3.54401]
[1739803760598,3.54335,2822.2,2821.7,3.66162108]
[1739803760797,3.54346,2822.1,2821.7,0.11767108]
[1739803761209,3.54346,2822.1,2821.5,6.54412]
[1739803761412,3.54346,2822.1,2821.8,0.11760868]
[1739803761711,3.54368,2822.0,2821.9,0.1175463]
[1739803762079,0.790502,2822.1,2821.1,0.805]
[1739803762409,3.54346,2822.1,2821.1,0.805]
[1739803762618,3.54404,2821.7,2821.2,0.11900422]
[1739803762909,3.54418,2821.6,2821.2,0.11900422]
[1739803763116,3.54404,2821.7,2821.2,0.11900422]
[1739803763317,0.8183,2822.2,2821.4,3.54427]
[1739803763612,3.544,2821.7,2821.0,3.54471]
[1739803763763,3.5437,2822.0,2821.5,0.11999294]
[1739803763967,3.5437,2822.0,2821.2,3.5445]
[1739803764411,3.5437,2822.0,2821.3,3.66444776]
[1739803764576,3.5437,2822.0,2821.3,0.12011776]
[1739803764766,3.54379,2821.9,2821.3,0.12011776]
[1739803764969,3.54433,2821.4,2821.3,0.12011776]
[1739803765393,3.54446,2821.3,2820.8,3.54505]
[1739803766514,3.54446,2821.3,2820.7,3.54516]
[1739803766716,3.54408,2821.6,2820.5,3.54538]
[1739803766874,3.54506,2820.9,2820.4,3.54555]
[1739803767069,3.54516,2820.8,2820.2,3.54574]
[1739803767269,0.7721,2820.8,2820.1,0.03545458]
[1739803767489,0.7721,2821.2,2820.9,3.54494]
[1739803767896,0.7721,2821.2,2820.7,3.54516]
[1739803768111,0.7721,2821.2,2820.6,3.5453]
[1739803768292,0.7721,2821.2,2820.7,3.54517]
[1739803768614,0.7721,2821.2,2820.6,3.5453]
[1739803768615,1.203757,2821.2,2820.6,3.5453]
[1739803768815,1.203757,2821.2,2820.3,3.5457]
[1739803768966,1.203757,2821.2,2820.2,3.54573]
[1739803769167,4.748347,2821.2,2820.4,3.54549]
[1739803769500,4.748427,2821.2,2820.6,3.54522]
[1739803769697,3.54493,2821.0,2820.4,3.54553]
[1739803769900,3.54493,2821.0,2820.5,3.54546]
[1739803770106,3.54486,2821.0,2820.5,3.54546]
[1739803770266,3.5449,2821.0,2820.5,3.54545]
[1739803770624,4.748367,2821.2,2820.5,3.54545]
[1739803770826,3.54482,2821.1,2820.2,0.03545218]
[1739803771027,3.54482,2821.1,2820.6,3.0]
[1739803771228,3.54482,2821.1,2819.7,0.8285]
[1739803771229,4.65642935,2821.1,2819.7,0.8285]
[1739803771438,8.20118935,2821.1,2819.7,0.8285]
[1739803771611,3.49221389,2820.6,2820.0,3.54602]
[1739803772031,3.54512,2820.8,2820.1,3.0]
[1739803772188,3.54515,2820.8,2819.8,3.0]
[1739803772637,3.54545,2820.6,2820.1,3.0]
[1739803772783,3.54471,2821.1,2819.7,0.8285]
[1739803772784,0.7813,2820.5,2819.7,0.8285]
[1739803772984,3.54599,2820.1,2819.5,3.54664]
[1739803773194,4.32686,2820.5,2819.9,3.54622]
[1739803773391,4.32686,2820.5,2819.8,0.06027599]
[1739803773392,3.54583,2820.3,2819.7,3.5464]
[1739803773639,3.54585,2820.2,2820.0,0.10850462]
[1739803773796,3.54585,2820.2,2819.7,3.5464]
[1739803774133,3.54566,2820.4,2819.3,0.7536]
[1739803774290,0.432696,2820.4,2819.8,0.10863437]
[1739803774491,0.432696,2820.4,2819.3,0.7536]
[1739803774691,3.54595,2820.2,2819.6,3.54652]
[1739803774891,4.32684,2820.5,2819.8,3.54626]
[1739803775311,3.54565,2820.4,2819.8,3.54626]
[1739803775536,3.54562,2820.4,2819.9,3.65484004]
[1739803775731,3.54562,2820.4,2819.9,0.10874004]
[1739803775995,0.7813,2820.5,2820.0,3.54599]
[1739803776344,0.7813,2820.5,2820.1,0.1086151]
[1739803776500,3.54579,2820.3,2820.1,0.1086151]
[1739803776695,1.213972,2820.5,2820.0,3.54604]
[1739803777008,3.54534,2820.6,2820.2,0.10855263]
[1739803777210,3.54553,2820.5,2820.1,0.1086151]
[1739803777406,3.54553,2820.5,2820.3,0.10849017]
[1739803777610,3.54553,2820.5,2820.2,0.10855263]
[1739803777820,3.54537,2820.6,2820.0,3.54598]
[1739803778024,3.54537,2820.6,2820.3,0.10849017]
[1739803778025,3.54569,2820.4,2820.3,0.10849017]
[1739803778238,0.433107,2820.6,2819.7,3.54641]
[1739803778538,3.54622,2819.9,2819.8,0.10880252]
[1739803778923,3.54622,2819.9,2819.2,3.5471]
[1739803779124,3.54653,2819.7,2819.2,3.5471]
[1739803779309,3.54653,2819.7,2819.3,0.10911497]
[1739803779717,3.54653,2819.7,2819.2,3.547]
[1739803780025,3.54653,2819.7,2819.4,0.10905247]
[1739803780232,3.54653,2819.7,2819.3,3.10911497]
[1739803780428,3.54653,2819.7,2819.5,0.10898997]
[1739803780743,3.54639,2819.8,2819.6,0.10892748]
[1739803780914,3.54647,2819.7,2819.6,0.10892748]
[1739803781094,3.54647,2819.7,2819.3,3.0]
[1739803781298,3.54647,2819.7,2819.2,3.547]
[1739803781299,4.33305,2819.8,2819.2,6.547]
[1739803781538,0.7867,2819.8,2818.9,0.9080695]
[1739803781741,0.7867,2820.2,2819.8,3.54625]
[1739803781956,0.7867,2820.2,2819.6,7.09303]
[1739803782098,3.54598,2820.1,2819.9,0.10961937]
[1739803782294,4.33262,2820.2,2819.8,3.54633]
[1739803782546,0.7867,2820.2,2820.0,0.10955209]
[1739803782749,3.54597,2820.1,2819.9,0.10961456]
[1739803783053,3.54597,2820.1,2819.6,3.54655]
[1739803783054,0.7867,2820.2,2819.5,3.0]
[1739803783204,0.7867,2820.2,2819.8,3.54628]
[1739803783404,0.7867,2820.2,2819.5,3.58215291]
[1739803783710,4.33255,2820.2,2819.5,3.54669]
[1739803783915,3.54618,2820.0,2819.5,3.54669]
[1739803784110,3.54618,2820.0,2819.3,3.0]
[1739803784315,3.54597,2820.1,2819.5,3.54666]
[1739803784533,3.54616,2820.0,2819.5,3.54666]
[1739803784736,0.7867,2820.2,2819.8,3.54634]
[1739803784939,0.06485894,2820.5,2820.2,3.54581]
[1739803785125,0.06485894,2820.5,2819.6,0.03545901]
[1739803785326,0.06485894,2820.5,2819.7,0.3854559]
[1739803785644,3.54507,2820.9,2820.2,3.54581]
[1739803785842,8.38434097,2821.0,2820.2,3.54577]
[1739803785843,8.38435097,2821.0,2820.2,3.54577]
[1739803786045,4.32005,2821.0,2820.0,3.0]
[1739803786345,4.32005,2821.0,2820.4,3.54548]
[1739803786546,0.7752,2821.0,2820.6,3.54526]
[1739803786902,3.54464,2821.2,2820.7,3.54512]
[1739803787103,3.54491,2821.0,2820.5,3.0]
[1739803787298,3.54491,2821.0,2820.5,3.54546]
[1739803787503,5.5338791,2821.2,2820.5,3.54542]
[1739803787751,5.5338791,2821.2,2820.5,3.54538]
[1739803788058,3.54486,2821.0,2820.4,10.09109]
[1739803788349,3.54486,2821.0,2820.5,3.65255386]
[1739803788502,3.54524,2820.7,2820.5,0.10712386]
[1739803788707,3.54529,2820.7,2820.5,0.10712386]
[1739803789023,3.54524,2820.7,2820.2,3.54576]
[1739803789217,3.54524,2820.7,2820.6,0.10702782]
[1739803789406,0.7809,2820.6,2820.1,3.0]
[1739803790032,1.6199501,2820.6,2819.7,3.9318759]
[1739803790243,3.54578,2820.3,2819.7,3.54642]
[1739803790447,5.1653401,2820.6,2819.6,4.3015]
[1739803790750,0.7809,2820.6,2820.3,3.54567]
[1739803791048,3.54543,2820.6,2820.1,3.0]
[1739803791619,9.29791488,2821.0,2820.3,3.5457]
[1739803791821,9.29791488,2821.0,2820.2,3.54574]
[1739803791822,3.54516,2820.8,2820.2,3.54574]
[1739803792433,3.54516,2820.8,2820.3,3.54569]
[1739803792736,4.47482149,2820.9,2820.3,3.54569]
[1739803792942,3.54515,2820.8,2820.3,3.54569]
[1739803793113,3.54515,2820.8,2820.1,3.54589]
[1739803793313,3.54529,2820.7,2820.1,3.54588]
[1739803793515,3.54529,2820.7,2820.1,7.09176]
[1739803793705,0.93201425,2820.8,2820.3,3.54562]
[1739803793905,4.47711425,2820.8,2820.3,3.54562]
[1739803794450,0.93201425,2820.8,2820.2,3.54583]
[1739803794757,3.54522,2820.7,2820.2,3.54583]
[1739803795359,4.84520097,2821.0,2820.1,3.54595]
[1739803795684,3.54512,2820.8,2820.2,3.54575]
[1739803795820,3.54507,2820.9,2820.3,3.54561]
[1739803796028,3.54517,2820.8,2820.3,3.54561]
[1739803796252,4.84520097,2821.0,2820.5,3.54535]
[1739803796567,3.54506,2820.9,2820.3,4.35638]
[1739803796735,3.54513,2820.8,2820.3,0.8107]
[1739803796936,3.54513,2820.8,2820.3,4.3564]
[1739803797269,3.5454,2820.6,2820.0,3.546]
[1739803797443,3.54528,2820.7,2820.1,3.54585]
[1739803797629,3.5453,2820.7,2820.1,3.54585]
[1739803798058,3.54541,2820.6,2820.1,3.54585]
[1739803798466,3.54547,2820.5,2820.0,3.54609]
[1739803798666,3.54547,2820.5,2820.0,3.0]
[1739803798979,3.54553,2820.5,2820.0,6.54608]
[1739803799171,3.54578,2820.3,2819.8,3.54627]
[1739803799327,3.900073,2820.5,2820.0,3.0]
[1739803799525,3.900073,2820.5,2820.0,3.54608]
[1739803800019,3.54552,2820.5,2820.0,3.54608]
[1739803800422,0.7965,2820.6,2819.5,4.37324]
[1739803800636,0.7965,2820.6,2819.6,3.5466]
[1739803800869,0.7965,2820.9,2820.4,3.54549]
[1739803801176,3.54522,2820.7,2820.2,3.54575]
[1739803801671,0.788688,2820.7,2820.3,3.54564]
[1739803801909,3.54521,2820.8,2820.1,3.54586]
[1739803802058,3.54528,2820.7,2820.1,3.54586]
[1739803802232,4.34156,2820.9,2820.2,3.54577]
[1739803802433,4.34156,2820.9,2820.4,3.54552]
[1739803802675,4.34156,2820.9,2820.3,3.54571]
[1739803802676,7.8866,2820.9,2820.3,3.54571]
[1739803802828,5.5366301,2820.9,2820.5,0.10711906]
[1739803803182,5.5366301,2820.9,2820.5,3.54545]
[1739803803183,1.9915901,2820.9,2820.5,3.54545]
[1739803803370,1.9915901,2820.9,2820.3,3.54568]
[1739803803371,3.54435,2821.4,2820.8,3.54507]
[1739803803580,3.5444,2821.4,2820.8,3.54508]
[1739803803931,3.5444,2821.4,2820.9,0.10684051]
[1739803804128,0.35444,2821.3,2821.0,3.54481]
[1739803804374,0.8064,2821.6,2820.9,0.87604051]
[1739803804665,3.54362,2822.0,2820.9,0.87604051]
[1739803804666,7.968,2822.1,2821.1,3.10670606]
[1739803804837,7.968,2822.1,2821.6,3.54407]
[1739803805041,7.968,2822.1,2821.8,3.54378]
[1739803805254,0.8192,2822.4,2821.8,3.54378]
[1739803805456,3.54285,2822.6,2822.0,3.54346]
[1739803805657,3.54285,2822.6,2821.9,6.54364]
[1739803805972,0.7534,2822.7,2822.0,0.10571747]
[1739803805973,3.54319,2822.4,2822.0,0.10571747]
[1739803806177,3.54297,2822.5,2822.0,0.10571747]
[1739803806339,3.54296,2822.5,2821.7,3.7939]
[1739803806534,3.54331,2822.3,2822.1,0.10565509]
[1739803806736,0.7534,2822.7,2821.9,3.0]
[1739803806737,3.54303,2822.5,2821.9,3.0]
[1739803807002,3.54303,2822.5,2822.2,0.10559271]
[1739803807307,3.54286,2822.6,2821.9,3.5436]
[1739803807509,3.54308,2822.4,2821.9,3.0]
[1739803807691,3.54333,2822.3,2821.9,3.0]
[1739803807894,3.54333,2822.3,2822.0,0.10544415]
[1739803808077,3.54333,2822.3,2821.6,3.54407]
[1739803808267,3.54333,2822.3,2821.7,3.0]
[1739803808470,0.7534,2822.7,2821.7,1.11441897]
[1739803808669,3.54353,2822.1,2821.7,0.10559297]
[1739803808864,0.8125,2822.1,2821.0,4.36094]
[1739803809071,0.8125,2822.1,2821.2,3.54448]
[1739803809072,3.54368,2822.0,2821.2,3.54448]
[1739803809297,3.54393,2821.8,2821.1,3.64995951]
[1739803809479,3.54393,2821.8,2821.3,0.10520468]
[1739803809684,3.54393,2821.8,2821.4,0.10514227]
[1739803809913,0.435618,2821.9,2821.2,3.54454]
[1739803810131,0.435618,2821.9,2821.5,0.10507986]
[1739803810411,0.435618,2821.9,2821.2,3.54454]
[1739803810412,3.979348,2821.9,2821.2,3.54454]
[1739803810579,3.54396,2821.7,2821.6,0.10501746]
[1739803810784,0.3979348,2821.8,2820.7,0.8162]
[1739803811000,0.8125,2821.4,2820.7,0.8162]
[1739803811318,3.54467,2821.2,2820.6,3.0]
[1739803811615,3.54472,2821.1,2820.6,3.0]
[1739803811772,3.54467,2821.2,2820.5,3.54539]
[1739803812116,4.334825,2821.2,2820.4,4.36175]
[1739803812271,3.54467,2821.2,2820.6,3.54525]
[1739803812668,3.54478,2821.1,2820.4,4.36175]
[1739803812997,3.54421,2821.5,2820.9,3.54486]
[1739803813308,3.54443,2821.4,2820.7,3.54512]
[1739803813474,3.54423,2821.5,2820.9,3.54488]
[1739803813675,3.54414,2821.6,2820.9,3.54488]
[1739803813919,4.37702037,2821.6,2820.8,3.0]
[1739803814214,3.5445,2821.3,2820.8,3.0]
[1739803814374,3.54444,2821.4,2820.8,3.0]
[1739803814807,3.54454,2821.3,2820.8,3.0]
[1739803815229,3.54444,2821.4,2820.8,3.54508]
[1739803815616,3.54485,2821.0,2820.4,0.8162]
[1739803815816,3.54485,2821.0,2820.4,4.36178]
[1739803816014,3.54485,2821.0,2820.4,0.8162]
[1739803816233,3.54497,2820.9,2820.4,0.8162]
[1739803816853,3.54462,2821.2,2820.6,3.54525]
[1739803817010,7.08931,2821.2,2820.6,3.54525]
[1739803817349,4.253551,2821.2,2820.6,3.54525]
[1739803817549,3.54462,2821.2,2820.6,3.54525]
[1739803817955,3.54471,2821.1,2820.5,3.54538]
[1739803818137,3.54484,2821.0,2820.7,0.10557923]
[1739803818454,3.54499,2820.9,2820.6,0.10564168]
[1739803818612,3.54499,2820.9,2820.5,3.0]
[1739803818613,3.54476,2821.1,2820.8,0.1055168]
[1739803818812,3.54476,2821.1,2820.7,0.10557923]
[1739803819008,4.06430097,2821.6,2820.9,0.10545436]
[1739803819239,0.4842301,2821.5,2820.8,0.1055168]
[1739803819518,3.54459,2821.2,2820.9,0.10591474]
[1739803820010,3.54459,2821.2,2820.6,3.0]
[1739803820345,4.06430097,2821.5,2820.4,0.8162]
[1739803820552,3.54484,2821.0,2820.7,0.10603961]
[1739803820749,3.54484,2821.0,2820.6,3.0]
[1739803820750,7.08978,2821.0,2820.6,3.0]
[1739803820913,3.5448,2821.1,2820.8,0.10643753]
[1739803821107,3.5448,2821.1,2820.6,3.0]
[1739803821108,3.89928,2821.1,2820.6,3.0]
[1739803821341,7.09005,2820.9,2820.7,0.10649997]
[1739803821543,3.54509,2820.8,2820.7,0.10649997]
[1739803821945,3.54509,2820.8,2820.3,3.0]
[1739803822164,3.54519,2820.8,2820.7,0.10649997]
[1739803822471,3.545,2820.9,2820.4,3.54551]
[1739803822472,7.09007,2820.9,2820.4,3.54551]
[1739803822645,3.54509,2820.8,2820.7,0.10649997]
[1739803822846,3.5454,2820.6,2820.2,3.0]
[1739803823080,3.54521,2820.7,2820.0,0.8055]
[1739803823287,3.54585,2820.2,2819.3,0.7968]
[1739803823773,3.54585,2820.2,2819.5,3.5467]
[1739803823936,3.54606,2820.1,2819.5,3.5467]
[1739803824136,3.24082447,2820.3,2819.3,4.34374]
[1739803824337,3.54609,2820.1,2819.4,3.54683]
[1739803824532,3.54617,2820.0,2819.3,4.34374]
[1739803824775,3.54617,2820.0,2819.5,3.5467]
[1739803824937,3.54576,2820.3,2819.3,0.7968]
[1739803825278,4.29773,2820.7,2820.1,3.5459]
[1739803825479,3.54547,2820.5,2820.0,4.32498]
[1739803825648,4.7984039,2820.7,2820.1,3.54595]
[1739803826057,1.2531739,2820.7,2820.3,3.54561]
[1739803826380,1.17298,2821.1,2820.2,3.0]
[1739803826553,1.17298,2821.1,2820.0,0.81435627]
[1739803826885,3.54508,2820.9,2820.3,3.54561]
[1739803827175,3.54508,2820.9,2820.2,3.54577]
[1739803827380,3.54523,2820.7,2820.2,3.54577]
[1739803828064,3.54583,2820.3,2819.6,4.31996]
[1739803828234,3.54581,2820.3,2819.7,3.54647]
[1739803828442,3.54592,2820.2,2819.7,3.54647]
[1739803828638,3.54601,2820.1,2819.6,0.7734]
[1739803829359,3.54616,2820.0,2819.5,3.5467]
[1739803830024,4.21895557,2820.0,2819.4,0.7734]
[1739803830236,4.21895557,2820.0,2818.9,0.1536695]
[1739803830237,4.06377286,2819.5,2818.9,0.1536695]
[1739803830438,3.5473,2819.1,2818.9,0.1536695]
[1739803830742,3.54735,2819.0,2818.9,0.1536695]
[1739803830940,4.66319229,2819.0,2818.9,0.1536695]
[1739803831409,4.72800267,2819.0,2818.9,0.1536695]